[Event "VI Sunway Sitges Open 2019"]
[Site "Sitges"]
[Date "2019.12.17"]
[Round "5.52"]
[White "Clanchet Olle, Josep"]
[Black "Poumey, Philippe"]
[Result "1-0"]
[ECO "B02"]
[WhiteElo "1634"]
[BlackElo "1777"]
[Annotator "NA"]
[PlyCount "85"]
[EventDate "2019.12.13"]
[EventType "swiss"]
[EventCountry "ESP"]
[SourceTitle "playchess.com"]
[Source "ChessBase"]
[SourceQuality "1"]
[TimeControl "40/5400+30:1800+30"]

1. e4 {[%emt 0:00:00]} Nf6 {[%emt 0:03:13]} 2. Nc3 {[%emt 0:01:03]} d5 {[%emt 0:00:18]} 3. exd5 {[%emt 0:02:28]} Nxd5 {[%emt 0:00:09]} 4. Bc4 {[%emt 0:01:01]} Nb6 {[%emt 0:04:54]} 5. Bb3 {[%emt 0:02:11]} Nc6 {[%emt 0:04:35]} 6. Nf3 {[%emt 0:02:10]} g6 {[%emt 0:01:29]} 7. O-O {[%emt 0:02:44]} Bg7 {[%emt 0:00:15]} 8. d3 {[%emt 0:04:17]} O-O {[%emt 0:00:10]} 9. Bf4 {[%emt 0:03:16]} Bg4 {[%emt 0:15:25]} 10. h3 {[%emt 0:02:39]} Bxf3 {[%emt 0:07:51]} 11. Qxf3 {[%emt 0:00:19]} Na5 {[%emt 0:03:10]} 12. Qe3 {[%emt 0:08:24]} Nxb3 {[%emt 0:04:32]} 13. axb3 {[%emt 0:04:18]} c6 {[%emt 0:04:03]} 14. Be5 {[%emt 0:03:30]} Bxe5 {[%emt 0:06:59]} 15. Qxe5 {[%emt 0:00:12]} a6 {[%emt 0:02:52]} 16. Rfe1 {[%emt 0:02:59]} e6 {[%emt 0:00:10]} 17. Ne4 {[%emt 0:02:40]} Nd7 {[%emt 0:00:05]} 18. Qd6 {[%emt 0:03:50]} Kg7 {[%emt 0:03:45]} 19. Qd4+ {[%emt 0:02:52]} e5 {[%emt 0:01:53]} 20. Qc3 {[%emt 0:02:55]} Qc7 {[%emt 0:01:23]} 21. d4 {[%emt 0:04:30]} f6 {[%emt 0:00:58]} 22. Rad1 {[%emt 0:02:15]} exd4 {[%emt 0:02:21]} 23. Qxd4 {[%emt 0:04:09]} Nb6 {[%emt 0:00:47]} 24. Ng5 {[%emt 0:05:19]} Rfe8 {[%emt 0:04:02]} 25. Ne6+ {[%emt 0:01:20]} Rxe6 {[%emt 0:00:05]} 26. Rxe6 {[%emt 0:00:19]} Rf8 {[%emt 0:00:35]} 27. Rde1 {[%emt 0:03:35]} Rf7 {[%emt 0:00:07]} 28. c4 {[%emt 0:01:26]} a5 {[%emt 0:01:32]} 29. Qd6 {[%emt 0:02:58]} Qxd6 {[%emt 0:02:22]} 30. Rxd6 {[%emt 0:00:10]} Nc8 {[%emt 0:00:20]} 31. Rd8 {[%emt 0:00:52]} Rc7 {[%emt 0:01:39]} 32. c5 {[%emt 0:03:01]} b5 {[%emt 0:01:10]} 33. Ra1 {[%emt 0:01:21]} Ne7 {[%emt 0:00:27]} 34. Rxa5 {[%emt 0:00:56]} b4 {[%emt 0:01:16]} 35. Raa8 {[%emt 0:01:20]} Nd5 {[%emt 0:00:34]} 36. Rac8 {[%emt 0:01:12]} Ra7 {[%emt 0:02:29]} 37. Rxc6 {[%emt 0:00:47]} Ra1+ {[%emt 0:00:05]} 38. Kh2 {[%emt 0:00:24]} Nc3 {[%emt 0:00:34]} 39. Rc7+ {[%emt 0:03:37]} Kh6 {[%emt 0:00:20]} 40. Re7 {[%emt 0:00:00]} Ra2 {[%emt 0:00:00]} 41. bxc3 {[%emt 0:02:46]} bxc3 {[%emt 0:04:17]} 42. Rd1 {[%emt 0:01:07]} c2 {[%emt 0:02:26]} 43. Rc1 {[%emt 0:00:26]} 1-0

[Event "VI Sunway Sitges Open 2019"]
[Site "Sitges"]
[Date "2019.12.17"]
[Round "5.53"]
[White "Ribon Calabia, Mariano"]
[Black "Minko, Uliana"]
[Result "1-0"]
[ECO "D26"]
[WhiteElo "1663"]
[BlackElo "1311"]
[Annotator "NA"]
[PlyCount "97"]
[EventDate "2019.12.13"]
[EventType "swiss"]
[EventCountry "ESP"]
[SourceTitle "playchess.com"]
[Source "ChessBase"]
[SourceQuality "1"]
[TimeControl "40/5400+30:1800+30"]

1. d4 {[%emt 0:00:00]} d5 {[%emt 0:00:00]} 2. c4 {[%emt 0:00:00]} dxc4 {[%emt 0:00:13]} 3. e3 {[%emt 0:00:17]} e6 {[%emt 0:00:13]} 4. Bxc4 {[%emt 0:00:24]} Nf6 {[%emt 0:00:16]} 5. Nf3 {[%emt 0:00:53]} a6 {[%emt 0:00:12]} 6. Ne5 {[%emt 0:01:13]} c5 {[%emt 0:00:43]} 7. O-O {[%emt 0:01:28]} b5 {[%emt 0:00:08]} 8. Qf3 {[%emt 0:05:37]} Ra7 {[%emt 0:01:24]} 9. Be2 {[%emt 0:01:54]} Bb7 {[%emt 0:00:37]} 10. Qf4 {[%emt 0:01:05]} c4 {[%emt 0:06:13]} 11. Nc3 {[%emt 0:00:56]} Be7 {[%emt 0:01:12]} 12. b3 {[%emt 0:03:21]} cxb3 {[%emt 0:01:43]} 13. axb3 {[%emt 0:00:24]} O-O {[%emt 0:00:14]} 14. Nxb5 {[%emt 0:02:27]} Ra8 {[%emt 0:00:59]} 15. Nc3 {[%emt 0:00:49]} Nbd7 {[%emt 0:00:32]} 16. Bf3 {[%emt 0:14:13]} Bxf3 {[%emt 0:05:03]} 17. Nxd7 {[%emt 0:07:45]} Nxd7 {[%emt 0:01:37]} 18. Qxf3 {[%emt 0:00:17]} Nf6 {[%emt 0:01:53]} 19. Ba3 {[%emt 0:02:04]} Ra7 {[%emt 0:03:27]} 20. Ne4 {[%emt 0:07:20]} Nd5 {[%emt 0:03:24]} 21. Qe2 {[%emt 0:06:00]} a5 {[%emt 0:02:26]} 22. Bxe7 {[%emt 0:03:08]} Qxe7 {[%emt 0:00:52]} 23. Rfc1 {[%emt 0:00:16]} h6 {[%emt 0:01:09]} 24. Nc3 {[%emt 0:07:03]} Nb4 {[%emt 0:02:15]} 25. Nb5 {[%emt 0:01:22]} Ra6 {[%emt 0:01:19]} 26. Rc7 {[%emt 0:03:39]} Qg5 {[%emt 0:02:59]} 27. Rc5 {[%emt 0:01:55]} Qg6 {[%emt 0:00:38]} 28. h4 {[%emt 0:05:02]} Qe4 {[%emt 0:07:40]} 29. g3 {[%emt 0:03:35]} Kh7 {[%emt 0:12:19]} 30. Nc3 {[%emt 0:02:03]} Qa8 {[%emt 0:01:38]} 31. Nb5 {[%emt 0:02:13]} Qd8 {[%emt 0:01:45]} 32. Qc4 {[%emt 0:01:59]} Qb6 {[%emt 0:04:47]} 33. Nc3 {[%emt 0:01:39]} Raa8 {[%emt 0:05:49]} 34. Na4 {[%emt 0:02:33]} Qd6 {[%emt 0:04:21]} 35. Nc3 {[%emt 0:03:25]} Qd8 {[%emt 0:01:53]} 36. Ne4 {[%emt 0:01:37]} f5 {[%emt 0:06:49]} 37. Nc3 {[%emt 0:01:21]} Re8 {[%emt 0:00:31]} 38. Nb5 {[%emt 0:00:35]} Re7 {[%emt 0:00:58]} 39. Nc7 {[%emt 0:01:14]} Ra7 {[%emt 0:01:34]} 40. Nxe6 {[%emt 0:00:00]} Qg8 {[%emt 0:00:00]} 41. d5 {[%emt 0:01:46]} Qh8 {[%emt 0:06:06]} 42. Raxa5 {[%emt 0:03:27]} Rxa5 {[%emt 0:02:51]} 43. Rxa5 {[%emt 0:00:16]} Rb7 {[%emt 0:00:21]} 44. Rb5 {[%emt 0:00:37]} Rxb5 {[%emt 0:00:51]} 45. Qxb5 {[%emt 0:00:07]} Na2 {[%emt 0:00:54]} 46. Qd3 {[%emt 0:00:23]} g6 {[%emt 0:00:20]} 47. Qd4 {[%emt 0:02:22]} Qg8 {[%emt 0:01:05]} 48. Qa7+ {[%emt 0:00:20]} Kh8 {[%emt 0:00:40]} 49. Qxa2 {[%emt 0:00:06]} 1-0

[Event "VI Sunway Sitges Open 2019"]
[Site "Sitges"]
[Date "2019.12.17"]
[Round "5.54"]
[White "Al Mutlaq, Ibrahim A"]
[Black "Stroup, James Howard"]
[Result "1-0"]
[ECO "C00"]
[WhiteElo "1509"]
[BlackElo "1402"]
[Annotator "NA"]
[PlyCount "59"]
[EventDate "2019.12.13"]
[EventType "swiss"]
[EventCountry "ESP"]
[SourceTitle "playchess.com"]
[Source "ChessBase"]
[SourceQuality "1"]
[TimeControl "40/5400+30:1800+30"]

1. e4 {[%emt 20:58:30]} e6 {[%emt 0:00:13]} 2. Nf3 {[%emt 0:00:14]} d5 {[%emt 0:00:36]} 3. e5 {[%emt 0:00:26]} c5 {[%emt 0:00:56]} 4. b4 {[%emt 0:00:49]} cxb4 {[%emt 0:02:08]} 5. a3 {[%emt 0:01:13]} b6 {[%emt 0:01:49]} 6. d4 {[%emt 0:00:22]} Ba6 {[%emt 0:00:58]} 7. Bd3 {[%emt 0:01:19]} Bxd3 {[%emt 0:01:25]} 8. Qxd3 {[%emt 0:00:09]} Nc6 {[%emt 0:00:52]} 9. O-O {[%emt 0:00:54]} Nge7 {[%emt 0:01:22]} 10. Bg5 {[%emt 0:03:14]} Qd7 {[%emt 0:02:38]} 11. Nfd2 {[%emt 0:04:04]} Nf5 {[%emt 0:02:50]} 12. Be3 {[%emt 0:00:11]} Be7 {[%emt 0:02:09]} 13. f4 {[%emt 0:01:07]} Nxe3 {[%emt 0:02:46]} 14. Qxe3 {[%emt 0:00:13]} Nxd4 {[%emt 0:01:07]} 15. Qd3 {[%emt 0:07:10]} Bc5 {[%emt 0:06:21]} 16. axb4 {[%emt 0:08:46]} Nxc2+ {[%emt 0:07:03]} 17. bxc5 {[%emt 0:00:09]} Nxa1 {[%emt 0:00:20]} 18. Nc3 {[%emt 0:00:24]} bxc5 {[%emt 0:03:02]} 19. Rxa1 {[%emt 0:02:18]} O-O {[%emt 0:01:13]} 20. Nf3 {[%emt 0:02:15]} Rfb8 {[%emt 0:06:20]} 21. Ng5 {[%emt 0:02:12]} g6 {[%emt 0:01:46]} 22. Nce4 {[%emt 0:00:21]} Qc7 {[%emt 0:05:05]} 23. Qh3 {[%emt 0:16:48]} dxe4 {[%emt 0:07:02]} 24. Qxh7+ {[%emt 0:00:28]} Kf8 {[%emt 0:02:39]} 25. Nxe6+ {[%emt 0:13:11]} fxe6 {[%emt 0:00:39]} 26. Qxc7 {[%emt 0:00:11]} Rc8 {[%emt 0:00:20]} 27. Qd6+ {[%emt 0:00:16]} Kf7 {[%emt 0:02:00]} 28. Qd7+ {[%emt 0:00:09]} Kf8 {[%emt 0:00:08]} 29. Rxa7 {[%emt 0:01:02]} Rxa7 {[%emt 0:00:25]} 30. Qxc8+ {[%emt 0:00:09]} 1-0

[Event "VI Sunway Sitges Open 2019"]
[Site "Sitges"]
[Date "2019.12.18"]
[Round "6.2"]
[White "Santos Latasa, Jaime"]
[Black "Nasuta, Grzegorz"]
[Result "1/2-1/2"]
[ECO "C94"]
[WhiteElo "2585"]
[BlackElo "2545"]
[Annotator "ChessBase"]
[PlyCount "60"]
[EventDate "2019.12.13"]
[EventType "swiss"]
[EventCountry "ESP"]
[SourceTitle "playchess.com"]
[Source "ChessBase"]
[SourceQuality "1"]
[TimeControl "40/5400+30:1800+30"]

1. e4 {[%emt 0:00:00]} e5 {[%emt 0:00:00]} 2. Nf3 {[%emt 0:00:00]} Nc6 {[%emt 0:00:00]} 3. Bb5 {[%emt 0:00:00]} a6 {[%emt 0:00:00]} 4. Ba4 {[%emt 0:00:04]} Nf6 {[%emt 0:00:00]} 5. O-O {[%emt 0:00:06]} Be7 {[%emt 0:00:22]} 6. Re1 {[%emt 0:00:06]} b5 {[%emt 0:00:06]} 7. Bb3 {[%emt 0:00:05]} d6 {[%emt 0:00:05]} 8. c3 {[%emt 0:00:05]} O-O {[%emt 0:00:06]} 9. h3 {[%emt 0:00:03]} Nb8 {[%emt 0:00:14]} 10. d3 {[%emt 0:00:15]} Nbd7 {[%emt 0:00:31]} 11. Nbd2 {[%emt 0:00:08]} Bb7 {[%emt 0:01:12]} 12. Nf1 {[%emt 0:01:17]} Nc5 {[%emt 0:02:24]} 13. Bc2 {[%emt 0:00:17]} Re8 {[%emt 0:00:15]} 14. Ng3 {[%emt 0:00:07]} Bf8 {[%emt 0:08:54]} 15. b4 {[%emt 0:01:43]} Ncd7 {[%emt 0:00:32]} 16. a4 {[%emt 0:00:08]} c5 {[%emt 0:05:57]} 17. bxc5 {[%emt 0:00:59]} Nxc5 {[%emt 0:00:05]} 18. axb5 {[%emt 0:01:57]} axb5 {[%emt 0:00:51]} 19. Rb1 {[%emt 0:00:09]} Bc6 {[%emt 0:03:23]} 20. d4 {[%emt 0:05:44]} exd4 {[%emt 0:02:54]} 21. Nxd4 {[%emt 0:00:52]} Bxe4 {[%emt 0:00:07]} 22. Nxe4 {[%emt 0:00:06]} Ncxe4 {[%emt 0:00:12]} 23. Nxb5 {[%emt 0:00:07]} d5 {[%emt 0:02:15]} 24. Be3 {[%emt 0:01:07]} Rc8 {[%emt 0:08:26]} 25. Bd4 {[%emt 0:01:52]} Bc5 {[%emt 0:05:37]} 26. Bxe4 {[%emt 0:01:23]} Rxe4 {[%emt 0:16:29]} 27. Rxe4 {[%emt 0:01:13]} Nxe4 {[%emt 0:00:16]} 28. f3 {[%emt 0:01:30]} Bxd4+ {[%emt 0:01:26]} 29. Qxd4 {[%emt 0:01:12]} Nf6 {[%emt 0:02:26]} 30. Qd3 {[%emt 0:00:59]} Rb8 {[%emt 0:02:10]} 1/2-1/2

[Event "VI Sunway Sitges Open 2019"]
[Site "Sitges"]
[Date "2019.12.18"]
[Round "6.3"]
[White "Li, Di"]
[Black "Puranik, Abhimanyu"]
[Result "1/2-1/2"]
[ECO "E61"]
[WhiteElo "2543"]
[BlackElo "2580"]
[Annotator "ChessBase"]
[PlyCount "99"]
[EventDate "2019.12.13"]
[EventType "swiss"]
[EventCountry "ESP"]
[SourceTitle "playchess.com"]
[Source "ChessBase"]
[SourceQuality "1"]
[TimeControl "40/5400+30:1800+30"]

1. Nf3 {[%emt 0:00:00]} Nf6 {[%emt 0:00:00]} 2. d4 {[%emt 0:00:04]} g6 {[%emt 0:00:00]} 3. c4 {[%emt 0:00:00]} Bg7 {[%emt 0:00:00]} 4. e3 {[%emt 0:00:14]} O-O {[%emt 0:00:38]} 5. Be2 {[%emt 0:00:08]} c5 {[%emt 0:00:47]} 6. d5 {[%emt 0:01:22]} d6 7. Nc3 {[%emt 0:00:00]} e6 {[%emt 0:01:27]} 8. O-O {[%emt 0:00:34]} exd5 {[%emt 0:00:21]} 9. cxd5 {[%emt 0:00:11]} Re8 {[%emt 0:01:30]} 10. Nd2 {[%emt 0:03:00]} Na6 {[%emt 0:05:19]} 11. Re1 {[%emt 0:01:43]} Rb8 {[%emt 0:08:43]} 12. e4 {[%emt 0:07:40]} Bd7 {[%emt 0:01:28]} 13. a4 {[%emt 0:04:19]} Nb4 {[%emt 0:00:00]} 14. Ra3 {[%emt 0:08:39]} b6 {[%emt 0:14:37]} 15. h3 {[%emt 0:05:17]} a6 {[%emt 0:02:05]} 16. Bf1 {[%emt 0:01:12]} b5 {[%emt 0:00:00]} 17. axb5 {[%emt 0:06:40]} axb5 {[%emt 0:00:00]} 18. Nf3 {[%emt 0:01:53]} Qb6 {[%emt 0:10:19]} 19. Bf4 {[%emt 0:05:42]} c4 {[%emt 0:09:52]} 20. Be3 {[%emt 0:00:55]} Qd8 {[%emt 0:05:31]} 21. Bd4 {[%emt 0:23:24]} Nd3 {[%emt 0:00:40]} 22. Bxd3 {[%emt 0:00:08]} b4 {[%emt 0:00:44]} 23. Bxc4 {[%emt 0:00:43]} bxa3 {[%emt 0:00:06]} 24. bxa3 {[%emt 0:04:45]} Qc7 {[%emt 0:03:34]} 25. Bf1 {[%emt 0:13:20]} Qa5 {[%emt 0:02:52]} 26. Re3 {[%emt 0:03:35]} Qxa3 {[%emt 0:18:06]} 27. e5 {[%emt 0:00:00]} dxe5 {[%emt 0:00:56]} 28. Bxe5 {[%emt 0:00:00]} Qc5 {[%emt 0:07:09]} 29. Bxb8 {[%emt 0:00:00]} Rxe3 {[%emt 0:00:08]} 30. fxe3 {[%emt 0:00:00]} Qxe3+ {[%emt 0:00:07]} 31. Kh1 {[%emt 0:00:00]} Qxc3 {[%emt 0:00:04]} 32. Be5 {[%emt 0:00:00]} Qc5 {[%emt 0:03:28]} 33. Qa1 {[%emt 0:00:00]} Ne4 {[%emt 0:02:32]} 34. Bxg7 {[%emt 0:00:00]} Ng3+ {[%emt 0:00:02]} 35. Kh2 {[%emt 0:00:00]} Nxf1+ {[%emt 0:00:03]} 36. Qxf1 {[%emt 0:01:10]} Kxg7 {[%emt 0:00:06]} 37. Qa1+ {[%emt 0:00:10]} f6 {[%emt 0:01:11]} 38. Qd4 {[%emt 0:02:17]} Qxd4 {[%emt 0:01:48]} 39. Nxd4 {[%emt 0:00:00]} Kf7 {[%emt 0:00:25]} 40. d6 {[%emt 0:00:00]} Ba4 {[%emt 0:00:00]} 41. h4 {[%emt 0:01:16]} Bd1 {[%emt 0:02:46]} 42. Kg3 {[%emt 0:01:59]} Ke8 {[%emt 0:00:49]} 43. Ne6 {[%emt 0:00:35]} Kd7 {[%emt 0:00:28]} 44. Nf8+ {[%emt 0:00:16]} Kxd6 {[%emt 0:00:06]} 45. Nxh7 {[%emt 0:01:21]} Ke7 {[%emt 0:00:03]} 46. Kf4 {[%emt 0:00:12]} Kf7 {[%emt 0:00:37]} 47. g4 {[%emt 0:00:28]} Kg7 {[%emt 0:00:30]} 48. Ng5 {[%emt 0:00:09]} fxg5+ {[%emt 0:00:04]} 49. Kxg5 {[%emt 0:00:08]} Be2 {[%emt 0:00:09]} 50. h5 {[%emt 0:00:09]} 1/2-1/2

[Event "VI Sunway Sitges Open 2019"]
[Site "Sitges"]
[Date "2019.12.18"]
[Round "6.13"]
[White "Kelires, Andreas"]
[Black "Nihal Sarin"]
[Result "1/2-1/2"]
[ECO "D83"]
[WhiteElo "2510"]
[BlackElo "2612"]
[Annotator "RC"]
[PlyCount "61"]
[EventDate "2019.12.13"]
[EventType "swiss"]
[EventCountry "ESP"]
[SourceTitle "playchess.com"]
[Source "ChessBase"]
[SourceQuality "1"]
[TimeControl "40/5400+30:1800+30"]

1. d4 {[%emt 0:00:00]} Nf6 {[%emt 0:04:33]} 2. c4 {[%emt 0:00:00]} g6 {[%emt 0:00:05]} 3. Nc3 {[%emt 0:00:00]} d5 {[%emt 0:00:04]} 4. Bf4 {[%emt 0:00:38]} Bg7 {[%emt 0:00:36]} 5. e3 {[%emt 0:00:07]} O-O {[%emt 0:01:16]} 6. Rc1 {[%emt 0:00:32]} c5 {[%emt 0:03:17]} 7. dxc5 {[%emt 0:00:58]} Qa5 {[%emt 0:00:31]} 8. cxd5 {[%emt 0:03:03]} Nbd7 {[%emt 0:01:43]} 9. Qa4 {[%emt 0:38:46]} Qxa4 {[%emt 0:21:00]} 10. Nxa4 {[%emt 0:00:40]} Nxd5 {[%emt 0:00:03]} 11. Bg3 {[%emt 0:06:02]} N7f6 {[%emt 0:21:30]} 12. Bb5 {[%emt 0:05:16]} a6 {[%emt 0:04:59]} 13. Bc4 {[%emt 0:09:07]} Bd7 {[%emt 0:04:14]} 14. Nb6 {[%emt 0:04:50]} Nxb6 {[%emt 0:00:24]} 15. cxb6 {[%emt 0:00:01]} Rfc8 {[%emt 0:16:58]} 16. Ne2 {[%emt 0:01:10]} Bc6 {[%emt 0:05:36]} 17. O-O {[%emt 0:07:36]} Nd7 {[%emt 0:00:06]} 18. Nc3 {[%emt 0:09:52]} Nxb6 {[%emt 0:00:58]} 19. Be2 {[%emt 0:00:37]} Nd5 {[%emt 0:01:54]} 20. Nxd5 {[%emt 0:00:29]} Bxd5 {[%emt 0:00:02]} 21. b3 {[%emt 0:00:06]} Bb2 {[%emt 0:02:04]} 22. Rxc8+ {[%emt 0:03:04]} Rxc8 {[%emt 0:00:01]} 23. Rd1 {[%emt 0:00:08]} Rc1 {[%emt 0:03:14]} 24. Rxc1 {[%emt 0:00:28]} Bxc1 {[%emt 0:00:02]} 25. Bd3 {[%emt 0:00:27]} f5 {[%emt 0:00:23]} 26. Be5 {[%emt 0:02:29]} Kf7 {[%emt 0:00:10]} 27. Bd4 {[%emt 0:00:21]} Ke6 {[%emt 0:01:34]} 28. f3 {[%emt 0:01:25]} Kd6 {[%emt 0:00:23]} 29. Kf2 {[%emt 0:01:53]} e5 {[%emt 0:01:51]} 30. Bc3 {[%emt 0:00:06]} Ba3 {[%emt 0:01:06]} 31. e4 {[%emt 0:01:33]} 1/2-1/2

[Event "VI Sunway Sitges Open 2019"]
[Site "Sitges"]
[Date "2019.12.18"]
[Round "6.15"]
[White "Gareyev, Timur"]
[Black "Gordon, Stephen J"]
[Result "1-0"]
[ECO "E34"]
[WhiteElo "2598"]
[BlackElo "2495"]
[Annotator "ChessBase"]
[PlyCount "73"]
[EventDate "2019.12.13"]
[EventType "swiss"]
[EventCountry "ESP"]
[SourceTitle "playchess.com"]
[Source "ChessBase"]
[SourceQuality "1"]
[TimeControl "40/5400+30:1800+30"]

1. d4 {[%emt 2:13:05]} Nf6 {[%emt 0:11:29]} 2. c4 {[%emt 0:00:37]} e6 {[%emt 0:00:14]} 3. Nc3 {[%emt 0:00:06]} Bb4 {[%emt 0:00:08]} 4. Qc2 {[%emt 0:00:04]} d5 {[%emt 0:04:16]} 5. e3 {[%emt 0:00:04]} O-O {[%emt 0:00:41]} 6. a3 {[%emt 0:00:05]} Bxc3+ {[%emt 0:06:27]} 7. Qxc3 {[%emt 0:00:26]} b6 {[%emt 0:03:26]} 8. Nf3 {[%emt 0:01:31]} Ba6 {[%emt 0:03:22]} 9. b3 {[%emt 0:00:08]} Nbd7 {[%emt 0:02:26]} 10. Be2 {[%emt 0:03:37]} c5 {[%emt 0:01:06]} 11. O-O {[%emt 0:00:43]} Rc8 {[%emt 0:10:17]} 12. a4 {[%emt 0:00:21]} dxc4 {[%emt 0:18:12]} 13. bxc4 {[%emt 0:00:25]} Qc7 {[%emt 0:01:53]} 14. Bb2 {[%emt 0:08:57]} Bb7 {[%emt 0:05:29]} 15. dxc5 {[%emt 0:13:51]} Nxc5 {[%emt 0:01:05]} 16. a5 {[%emt 0:03:13]} Rfd8 {[%emt 0:07:34]} 17. Nd4 {[%emt 0:17:11]} Nce4 {[%emt 0:02:24]} 18. Qb4 {[%emt 0:03:50]} Qc5 {[%emt 0:03:48]} 19. Qxc5 {[%emt 0:00:03]} Nxc5 {[%emt 0:05:57]} 20. f3 {[%emt 0:06:27]} bxa5 {[%emt 0:04:20]} 21. Rxa5 {[%emt 0:02:31]} a6 {[%emt 0:00:03]} 22. Rb1 {[%emt 0:10:20]} Nfd7 {[%emt 0:00:23]} 23. Ba3 {[%emt 0:01:03]} Ba8 {[%emt 0:03:29]} 24. Nb3 {[%emt 0:00:37]} Nxb3 {[%emt 0:00:39]} 25. Rxb3 {[%emt 0:00:07]} Nb8 {[%emt 0:01:49]} 26. Kf1 {[%emt 0:06:02]} Rc7 {[%emt 0:01:32]} 27. Bd6 {[%emt 0:06:37]} Rb7 {[%emt 0:00:21]} 28. Rxb7 {[%emt 0:01:46]} Bxb7 {[%emt 0:00:02]} 29. c5 {[%emt 0:01:25]} Nc6 {[%emt 0:01:07]} 30. Ra1 {[%emt 0:00:12]} Ra8 {[%emt 0:00:51]} 31. Rb1 {[%emt 0:01:54]} Ra7 {[%emt 0:00:21]} 32. f4 {[%emt 0:00:20]} f6 {[%emt 0:00:33]} 33. Bc4 {[%emt 0:00:33]} Kf7 {[%emt 0:00:31]} 34. f5 {[%emt 0:00:02]} Bc8 {[%emt 0:00:35]} 35. Rb6 {[%emt 0:00:17]} Na5 {[%emt 0:00:23]} 36. fxe6+ {[%emt 0:01:34]} Kg6 {[%emt 0:00:40]} 37. Bd5 {[%emt 0:00:49]} 1-0

[Event "VI Sunway Sitges Open 2019"]
[Site "Sitges"]
[Date "2019.12.18"]
[Round "6.22"]
[White "Song, Raymond"]
[Black "Svane, Rasmus"]
[Result "0-1"]
[ECO "D30"]
[WhiteElo "2468"]
[BlackElo "2597"]
[Annotator "ChessBase"]
[PlyCount "93"]
[EventDate "2019.12.13"]
[EventType "swiss"]
[EventCountry "ESP"]
[SourceTitle "playchess.com"]
[Source "ChessBase"]
[SourceQuality "1"]
[TimeControl "40/5400+30:1800+30"]

1. d4 {[%emt 0:00:00]} d5 {[%emt 0:00:00]} 2. c4 {[%emt 0:00:00]} e6 {[%emt 0:00:00]} 3. Nf3 {[%emt 0:00:00]} a6 {[%emt 0:00:00]} 4. Nbd2 {[%emt 0:00:00]} dxc4 {[%emt 0:10:52]} 5. Nxc4 {[%emt 0:00:06]} b5 {[%emt 0:00:30]} 6. Nce5 {[%emt 0:00:07]} Bb7 {[%emt 0:04:08]} 7. g3 {[%emt 0:01:56]} Nd7 {[%emt 0:05:40]} 8. Nxd7 {[%emt 0:02:24]} Bxf3 {[%emt 0:01:19]} 9. exf3 {[%emt 0:00:18]} Qxd7 {[%emt 0:00:59]} 10. Be2 {[%emt 0:08:57]} Bb4+ {[%emt 0:06:36]} 11. Kf1 {[%emt 0:00:07]} Ne7 {[%emt 0:00:21]} 12. a4 {[%emt 0:01:26]} O-O {[%emt 0:05:56]} 13. Be3 {[%emt 0:00:40]} Ba5 {[%emt 0:09:38]} 14. axb5 {[%emt 0:06:27]} axb5 {[%emt 0:00:09]} 15. Kg2 {[%emt 0:04:13]} Bb6 {[%emt 0:04:55]} 16. Qd3 {[%emt 0:00:38]} c6 {[%emt 0:00:40]} 17. f4 {[%emt 0:03:27]} Rad8 {[%emt 0:11:52]} 18. Rhd1 {[%emt 0:03:46]} Nf5 {[%emt 0:00:23]} 19. Bf3 {[%emt 0:02:59]} Bxd4 {[%emt 0:08:16]} 20. Be4 {[%emt 0:15:53]} Bxb2 {[%emt 0:07:14]} 21. Qxd7 {[%emt 0:01:20]} Nxe3+ {[%emt 0:01:33]} 22. fxe3 {[%emt 0:00:05]} Rxd7 {[%emt 0:00:06]} 23. Rxd7 {[%emt 0:00:04]} Bxa1 {[%emt 0:00:08]} 24. Bxc6 {[%emt 0:00:28]} b4 {[%emt 0:00:05]} 25. Rb7 {[%emt 0:02:48]} Bc3 {[%emt 0:00:12]} 26. Kf3 {[%emt 0:00:53]} g6 {[%emt 0:01:32]} 27. g4 {[%emt 0:00:08]} Rc8 {[%emt 0:00:37]} 28. Bd7 {[%emt 0:00:49]} Rd8 {[%emt 0:01:41]} 29. e4 {[%emt 0:09:24]} Kf8 {[%emt 0:02:14]} 30. e5 {[%emt 0:04:12]} Ra8 {[%emt 0:03:33]} 31. f5 {[%emt 0:00:37]} exf5 {[%emt 0:02:27]} 32. gxf5 {[%emt 0:01:13]} Bxe5 {[%emt 0:02:02]} 33. h4 {[%emt 0:09:20]} Rb8 {[%emt 0:04:34]} 34. Rxb8+ {[%emt 0:06:33]} Bxb8 {[%emt 0:00:05]} 35. fxg6 {[%emt 0:02:57]} hxg6 {[%emt 0:00:10]} 36. Ba4 {[%emt 0:00:03]} Kg7 {[%emt 0:01:47]} 37. Bb3 {[%emt 0:00:36]} f5 {[%emt 0:03:57]} 38. Be6 {[%emt 0:02:53]} Kf6 {[%emt 0:00:22]} 39. Bb3 {[%emt 0:00:21]} Bd6 {[%emt 0:00:16]} 40. Ba2 {[%emt 0:00:00]} Be5 {[%emt 0:00:00]} 41. Bb3 {[%emt 0:00:36]} Bc3 {[%emt 0:01:00]} 42. Ke2 {[%emt 0:01:48]} Kg7 {[%emt 0:02:34]} 43. Be6 {[%emt 0:01:43]} Kh6 {[%emt 0:02:17]} 44. Kd3 {[%emt 0:00:25]} Kh5 {[%emt 0:01:59]} 45. Bf7 {[%emt 0:00:08]} Bf6 {[%emt 0:04:41]} 46. Kc4 {[%emt 0:00:04]} Be7 {[%emt 0:00:07]} 47. Kd4 {[%emt 0:00:07]} 0-1